[Event "Baku Open 2024"]
[Site "Baku"]
[Date "2024.06.29"]
[Round "1.6"]
[White "Abasov, Nijat"]
[Black "Tregubenko, Nikolay"]
[Result "1-0"]
[ECO "B51"]
[WhiteElo "2621"]
[BlackElo "2246"]
[Annotator "TA"]
[PlyCount "107"]
[EventDate "2024.06.29"]
[EventType "swiss"]
[EventCountry "AZE"]
[SourceTitle "playchess.com"]
[Source "ChessBase"]
[SourceQuality "1"]
[TimeControl "5400+30"]

{[%evp 13,107,-1,0,0,2,0,20,0,31,26,31,23,27,19,22,5,37,35,35,33,20,25,29,0,0,0,0,0,0,6,5,7,25,27,73,61,77,67,63,60,78,70,63,76,83,83,90,90,90,90,75,23,48,30,33,15,15,15,14,16,17,7,10,0,0,0,0,0,0,0,6,6,10,0,0,13,50,50,143,150,145,139,1273,1117,1339,1247,29981,29982,29983,29984,29984,29985,29985,29986,29998,29999]} 1. e4 {[%emt 0:00:02]} c5 {[%emt 0:00:06]} 2. Nf3 {[%emt 0:00:04]} d6 {[%emt 0:00:09]} 3. Bb5+ {[%emt 0:00:04]} Nd7 {[%emt 0:00:08]} 4. c4 {[%emt 0:00:04]} Ngf6 {[%emt 0:01:31]} 5. Nc3 {[%emt 0:00:18]} g6 {[%emt 0:00:57]} 6. h3 {[%emt 0:00:30] B51: Sicilian: Moscow Variation (3 Bb5+) without 3...Bd7.} Bg7 {[%emt 0:00:19]} 7. d3 {[%emt 0:00:05]} O-O {[%emt 0:01:05]} 8. Ba4 {[%emt 0:00:05]} Nb6 {[%emt 0:06:47]} 9. Bb3 {[%emt 0:00:24]} Nfd7 {[%emt 0:01:10]} 10. Be3 {[%emt 0:00:28]} Nb8 {[%emt 0:03:05]} 11. d4 {[%emt 0:14:08]} cxd4 {[%emt 0:02:38]} 12. Nxd4 {[%emt 0:00:11]} Nc6 $146 {[%emt 0:00:53]} ({Predecessor:} 12... Bd7 13. Nd5 Nxd5 14. exd5 a5 15. Ba4 Na6 16. O-O Nc5 17. Bxd7 Qxd7 18. Qd2 Rfe8 {1-0 Sokolovsky,Y (2414)-Pasztor,B (2344) EU-ch U16 30th 2022 (6)}) 13. O-O {[%emt 0:03:02]} Bd7 {[%emt 0:07:42]} 14. Rc1 {[%emt 0:06:50]} Rc8 {[%emt 0:00:49]} 15. Nxc6 {[%emt 0:02:44]} Bxc6 {[%emt 0:02:27]} 16. Qe2 {[%emt 0:01:08]} Nd7 {[%emt 0:07:21]} 17. Rfd1 {[%emt 0:01:25]} (17. Bxa7 $2 b6 18. Bxb6 Qxb6 $19) 17... Qa5 {[%emt 0:01:29]} 18. Nd5 {[%emt 0:02:11]} Bxd5 {[%emt 0:01:24]} 19. exd5 {[%emt 0:03:50]} Nc5 {[%emt 0:03:55]} 20. Bd4 {[%emt 0:00:23]} Rfe8 {[%emt 0:02:37]} 21. Bxg7 {[%emt 0:02:21]} Kxg7 {[%emt 0:07:37]} 22. Rc3 {[%emt 0:00:25]} Nxb3 {[%emt 0:08:19]} 23. axb3 {[%emt 0:00:10]} a6 {[%emt 0:02:26]} (23... b5 $11 {is superior.}) 24. Re3 $16 {[%emt 0:02:19]} Rc7 {[%emt 0:00:25]} 25. Rd4 {[%emt 0:00:30]} b5 {[%emt 0:06:53]} 26. Rde4 {[%emt 0:05:00]} (26. Rh4 {seems wilder.} Rb7 27. Rg3 Rh8 28. Qd1) 26... Qb4 {[%emt 0:02:59]} 27. Kh2 {[%emt 0:02:07]} (27. Rxe7 Rcxe7 28. Rxe7 Rxe7 29. Qxe7 bxc4 (29... Qxb3 30. Qxd6 Qxb2 31. c5 $14) 30. bxc4 Qxc4) 27... bxc4 {[%emt 0:07:43]} 28. bxc4 {[%emt 0:00:28]} e5 {[%emt 0:09:04]} 29. dxe6 {[%emt 0:03:39]} Rxe6 {[%emt 0:00:05]} 30. Rxe6 {[%emt 0:00:39]} fxe6 {[%emt 0:00:03]} 31. b3 {[%emt 0:02:14]} e5 {[%emt 0:01:35]} 32. h4 {[%emt 0:04:54]} (32. Rxe5 $16 {Black must now prevent Re3.} Qxb3 33. Re7+ Rxe7 34. Qxe7+ Kg8 35. Qe6+ (35. Qxd6 Qxc4 36. g4 Kf7 $11) 35... Kg7 36. Qd7+ (36. Qxd6 Qxc4 37. Qe5+ Kf7 $11) 36... Kg8 37. Qc8+ (37. Qxd6 Qxc4 38. Qb8+ Kf7 $11) 37... Kf7 38. Qxa6) 32... Rf7 {[%emt 0:03:00]} 33. h5 {[%emt 0:02:13]} Rf5 {[%emt 0:00:50]} 34. Rg3 {[%emt 0:01:49]} Rf4 {[%emt 0:02:04]} 35. hxg6 {[%emt 0:01:54]} Rh4+ {[%emt 0:00:10]} 36. Kg1 {[%emt 0:01:19]} hxg6 {[%emt 0:00:07]} 37. Rd3 {[%emt 0:02:25]} Rd4 {[%emt 0:01:06]} 38. Rxd4 {[%emt 0:06:26]} exd4 {[%emt 0:00:02]} 39. Qe7+ {[%emt 0:00:06]} Kg8 {[%emt 0:00:15]} 40. Qe4 {[%emt 0:00:13]} Kf7 {[%emt 0:01:07]} 41. Qd5+ {[%emt 0:02:44]} Ke7 {[%emt 0:02:24]} 42. Qxd4 {[%emt 0:00:16]} Qxb3 {[%emt 0:00:23]} 43. Qg7+ {[%emt 0:00:08]} Kd8 {[%emt 0:00:58]} 44. Qxg6 {[%emt 0:00:13]} Kc7 {[%emt 0:02:50]} 45. Qf7+ {[%emt 0:01:54]} Kc8 {[%emt 0:00:31]} (45... Kd8 $14) 46. Qe6+ $1 $16 {[%emt 0:05:59]} Kc7 {[%emt 0:00:16] [#]} 47. g4 $1 {[%emt 0:00:18]} a5 $2 {[%emt 0:00:31][%mdl 8192] [#]} (47... Qh3 $16 48. Qf5 Kc6) 48. g5 $1 $18 {[%emt 0:02:23]} a4 {[%emt 0:00:11]} 49. g6 {[%emt 0:00:51]} a3 {[%emt 0:02:43]} 50. g7 {[%emt 0:01:29]} a2 {[%emt 0:00:01]} 51. Qf7+ {[%emt 0:01:36]} (51. g8=R $2 a1=Q+ (51... a1=B 52. Qf7+ Kb6 53. Rb8+ Ka6 54. Ra8+ Kb6 55. Qa7+ Kc6 56. Rc8#) 52. Kh2 Qe5+ 53. Qxe5 dxe5 $19) 51... Kb6 {[%emt 0:00:36]} 52. g8=Q {[%emt 0:00:09]} (52. g8=B $2 {loses.} Qd1+ (52... a1=B 53. c5+ Kxc5 54. Qc7+ Kb5 55. Bxb3 Bb2 56. Bc4+ Kb4 57. Bd5) (52... a1=Q+ $2 53. Kg2 $19) (52... a1=R+ $2 53. Kh2 $19) 53. Kh2 a1=Q $19 (53... a1=B 54. Qg6 $11)) 52... a1=Q+ {[%emt 0:00:23]} 53. Kg2 {[%emt 0:00:06]} Qac3 {[%emt 0:01:59]} 54. Qb8+ {[%emt 0:01:02]} 1-0

[Event "Baku Open 2024"]
[Site "Baku"]
[Date "2024.06.29"]
[Round "1.7"]
[White "Valiyev, Shahin"]
[Black "Aditya Mittal"]
[Result "0-1"]
[ECO "B90"]
[WhiteElo "2244"]
[BlackElo "2595"]
[Annotator "TA"]
[PlyCount "90"]
[EventDate "2024.06.29"]
[EventType "swiss"]
[EventCountry "AZE"]
[SourceTitle "playchess.com"]
[Source "ChessBase"]
[SourceQuality "1"]
[TimeControl "5400+30"]

{[%evp 17,90,10,16,0,0,-6,22,25,18,2,18,12,25,18,40,12,61,64,64,62,83,86,91,83,147,143,123,43,52,-70,-68,-56,-56,-55,-65,-65,-64,-87,-91,-104,-64,-159,-148,-153,-157,-192,-195,-202,-193,-203,-202,-290,-283,-413,-413,-414,-418,-414,-284,-253,-255,-252,-231,-217,-231,-232,-236,-287,-299,-380,-360,-377,-374,-374,-315]} 1. e4 {[%emt 0:00:17]} c5 {[%emt 0:00:01]} 2. Nf3 {[%emt 0:00:09]} d6 {[%emt 0:00:01]} 3. d4 {[%emt 0:00:10]} cxd4 {[%emt 0:00:02]} 4. Nxd4 {[%emt 0:00:07]} Nf6 {[%emt 0:00:01]} 5. Nc3 {[%emt 0:00:23]} a6 {[%emt 0:00:02]} 6. Be3 {[%emt 0:01:04]} e5 {[%emt 0:00:01]} 7. Nf3 {[%emt 0:00:49]} Be7 {[%emt 0:00:41]} 8. Bc4 {[%emt 0:01:04]} O-O {[%emt 0:00:25]} 9. O-O {[%emt 0:01:44]} Nc6 {[%emt 0:00:21]} 10. Re1 {[%emt 0:02:03]} Be6 {[%emt 0:05:44]} 11. Nd5 {[%emt 0:04:33]} b5 {[%emt 0:04:01]} 12. Nxf6+ {[%emt 0:29:32] The position is equal.} Bxf6 {[%emt 0:00:04]} 13. Bd5 {[%emt 0:01:13]} Qc7 {[%emt 0:13:26]} 14. c3 {[%emt 0:05:51]} Rab8 {[%emt 0:05:55]} 15. a4 {[%emt 0:18:15]} b4 {[%emt 0:28:24]} 16. Rc1 {[%emt 0:07:08] Strongly threatening cxb4.} b3 {[%emt 0:06:58]} (16... Qd7 $11 {is more appropriate.}) 17. Qd3 $14 {[%emt 0:04:12]} Bxd5 {[%emt 0:12:35]} 18. exd5 {[%emt 0:02:27]} (18. Qxd5 Na5 $11) 18... Ne7 {[%emt 0:00:01]} 19. Nd2 {[%emt 0:01:37][%cal Oc3c4]} (19. Qxa6 Nxd5 20. Bg5 Bxg5 21. Nxg5 Nb6 $15) 19... Qa5 {[%emt 0:04:21]} 20. c4 {[%emt 0:11:00] Black must now prevent Ne4.} Ng6 {[%emt 0:00:02]} (20... Qxa4 $142 21. Ne4 Qd7) 21. Ne4 $16 {[%emt 0:02:12]} ({Don't take} 21. Nxb3 $6 Qxa4 22. Nd2 Rxb2 $14) 21... Be7 {[%emt 0:00:30][%cal Of7f5]} 22. Bd2 {[%emt 0:01:29]} (22. c5 $16 f5 23. Nxd6 Bxd6 24. cxd6 Qxa4 25. Rc7) 22... Qxa4 $14 {[%emt 0:02:38]} 23. Ra1 {[%emt 0:01:55]} ({White should play} 23. c5 $1 $14) 23... Qd7 $15 {[%emt 0:00:14]} 24. c5 {[%emt 0:01:12]} dxc5 {[%emt 0:02:50]} 25. d6 {[%emt 0:00:27] [#]} c4 {[%emt 0:01:36]} 26. Qxc4 {[%emt 0:01:10]} (26. Qd5 Rb5) 26... Bxd6 {[%emt 0:00:23]} 27. Qd3 {[%emt 0:01:24][%cal Oa1a6] Rxa6! is the strong threat. Black continues to play with concentration.} Rfd8 {[%emt 0:00:33]} 28. Qxa6 {[%emt 0:00:30]} Be7 {[%emt 0:00:44] ...f5 would now be deadly.} 29. Be3 {[%emt 0:00:24]} (29. Ba5 $15 Rf8 30. Bc3) 29... Bb4 {[%emt 0:01:41]} 30. Rec1 {[%emt 0:00:24]} Qd5 {[%emt 0:00:39]} 31. Qc4 {[%emt 0:00:42]} Qxc4 {[%emt 0:00:48]} 32. Rxc4 {[%emt 0:00:05]} f5 {[%emt 0:00:06]} 33. Ng5 {[%emt 0:00:50] [#]} Be7 $1 {[%emt 0:01:53] Threatens to win with ...f4.} 34. Nf3 {[%emt 0:00:36]} (34. Kf1 $142) 34... Bf6 $19 {[%emt 0:01:56]} 35. Bg5 {[%emt 0:00:18]} (35. Rb1 $142) 35... Bxg5 {[%emt 0:01:14]} 36. Nxg5 {[%emt 0:01:14]} Rd2 {[%emt 0:00:30]} 37. Rb1 {[%emt 0:00:00]} h6 {[%emt 0:01:42]} 38. Nf3 {[%emt 0:00:00]} Rc2 {[%emt 0:00:06]} 39. Ra4 {[%emt 0:00:02]} Rbc8 {[%emt 0:01:50] And now ...Rc1+ would win.} 40. g3 {[%emt 0:00:44]} Re2 {[%emt 0:00:41]} 41. Ne1 {[%emt 0:00:30]} e4 {[%emt 0:01:51]} 42. Kf1 {[%emt 0:00:49]} Rd2 {[%emt 0:00:01]} 43. Rb4 {[%emt 0:00:07] [#]} Rcc2 $1 {[%emt 0:01:25][%mdl 512] Black is winning.} 44. Rxb3 {[%emt 0:00:52]} Rxf2+ {[%emt 0:00:04]} 45. Kg1 {[%emt 0:00:05]} Rcd2 {[%emt 0:00:26] Weighted Error Value: White=0.26 (precise) /Black=0.11 (very precise) .  Mistake:       	White=5     	Black=2      Inaccurate:     	White=1     	Black=3      OK:         	White=11    	Black=17     Best:        	---       	Black=6} 0-1

[Event "Baku Open 2024"]
[Site "Baku"]
[Date "2024.06.29"]
[Round "1.8"]
[White "Muradli, Mahammad"]
[Black "Kairbekova, Amina"]
[Result "1-0"]
[ECO "E92"]
[WhiteElo "2575"]
[BlackElo "2244"]
[Annotator "TA"]
[PlyCount "81"]
[EventDate "2024.06.29"]
[EventType "swiss"]
[EventCountry "AZE"]
[SourceTitle "playchess.com"]
[Source "ChessBase"]
[SourceQuality "1"]
[TimeControl "5400+30"]

{[%evp 15,81,24,29,22,27,23,47,46,52,43,45,46,57,44,57,46,42,41,45,33,45,45,45,32,45,21,22,10,31,-20,-16,-33,-35,-29,0,-15,0,0,0,0,20,-63,-62,-141,-37,-70,-78,-50,0,0,0,0,0,0,0,-24,224,233,208,223,243,248,511,490,479,426,403,390]} 1. d4 {[%emt 0:01:08]} Nf6 {[%emt 0:00:06]} 2. c4 {[%emt 0:00:06]} g6 {[%emt 0:00:04]} 3. Nc3 {[%emt 0:00:16]} Bg7 {[%emt 0:00:05]} 4. e4 {[%emt 0:00:28]} d6 {[%emt 0:00:12]} 5. Nf3 {[%emt 0:00:11]} O-O {[%emt 0:00:07]} 6. Be2 {[%emt 0:00:07]} e5 {[%emt 0:00:08]} 7. d5 {[%emt 0:01:23]} a5 {[%emt 0:01:23]} 8. Be3 {[%emt 0:03:11]} Ng4 {[%emt 0:08:21][%cal Bf6g4,Bg4h6,Bh6f5][%mdl 32]} 9. Bg5 {[%emt 0:00:10][%cal Be3g5,Bg5h4,Bh4g3][%mdl 32]} f6 {[%emt 0:00:04]} 10. Bh4 {[%emt 0:00:08]} g5 {[%emt 0:00:05]} 11. Bg3 {[%emt 0:00:13] White is slightly better.} Nh6 {[%emt 0:01:32]} 12. Nd2 {[%emt 0:09:50]} f5 {[%emt 0:05:58]} 13. exf5 {[%emt 0:01:08]} Nxf5 {[%emt 0:00:10]} 14. O-O {[%emt 0:02:31]} Nd7 {[%emt 0:05:33]} 15. Nde4 {[%emt 0:11:38]} b6 {[%emt 0:00:44]} 16. Bg4 {[%emt 0:02:49]} Nc5 {[%emt 0:07:30]} 17. h3 {[%emt 0:02:15]} Bd7 {[%emt 0:06:24]} 18. b3 {[%emt 0:02:04]} h6 {[%emt 0:00:55]} 19. Rb1 {[%emt 0:03:56]} Nd4 {[%emt 0:08:17]} 20. Re1 {[%emt 0:08:55]} Be8 {[%emt 0:02:41]} 21. Nxc5 {[%emt 0:13:26]} bxc5 {[%emt 0:00:11]} 22. a4 {[%emt 0:00:08]} (22. Bh5 $14) 22... Bg6 $11 {[%emt 0:06:42]} 23. Rc1 {[%emt 0:01:13] Inhibits Bc2.} Rb8 {[%emt 0:02:29]} 24. Nb5 $1 {[%emt 0:00:39]} e4 {[%emt 0:00:30]} 25. Re3 {[%emt 0:09:16]} (25. Bh5 $5 Bxh5 26. Qxh5 $16) 25... Rb7 {[%emt 0:06:31]} 26. Qd2 {[%emt 0:03:00]} h5 {[%emt 0:01:11]} 27. Be6+ {[%emt 0:01:16]} Kh8 {[%emt 0:01:11]} 28. Rce1 {[%emt 0:05:07]} (28. Qxa5 $11 Qf6 29. Qe1) 28... Qf6 $15 {[%emt 0:03:57]} 29. Kh1 {[%emt 0:05:46]} ({Better is} 29. Bh2 $15) 29... Bh6 {[%emt 0:13:40]} (29... h4 $17 30. Bh2 Qxf2) 30. Qxa5 {[%emt 0:04:09]} h4 {[%emt 0:02:43]} 31. Bh2 {[%emt 0:00:44]} g4 {[%emt 0:02:25]} (31... Nxe6 $15 32. dxe6 g4 33. Rxe4 Bxe4 (33... Qxf2 $2 34. R4e2 $18) 34. Rxe4 gxh3 (34... Qxf2 35. e7 $14)) 32. Bxg4 $1 $11 {[%emt 0:00:28]} Bxe3 {[%emt 0:01:42]} 33. fxe3 {[%emt 0:01:19]} Nxb3 {[%emt 0:08:28]} 34. Qa6 {[%emt 0:00:31]} Rfb8 {[%emt 0:00:05]} 35. a5 {[%emt 0:00:40][%cal Og4c8] Bc8! is the strong threat.} Be8 $2 {[%emt 0:02:45] [#] This costs Black the game.} ({Don't go for} 35... Qf2 $2 36. Rg1 Nd2 37. Nxd6 (37. Bc8 Nf3 $16) 37... cxd6 38. Qxd6 $18) (35... Nd2 $11 {and Black stays safe.} 36. Bc8 (36. Qc6 $2 Be8 $19) 36... Bf5 (36... Rxc8 37. Qxb7 Bf5 38. Nxd6 $17) (36... Qf2 37. Rg1 $16) 37. Bxf5 (37. Bxb7 $2 Bxh3 $19) 37... Qxf5) 36. Nxc7 $1 $18 {[%emt 0:03:12][%mdl 512]} Rxc7 {[%emt 0:01:30]} 37. Qxd6 {[%emt 0:00:09]} Qxd6 {[%emt 0:00:24]} 38. Bxd6 {[%emt 0:00:03] This pair of bishops is nice.} Rcc8 {[%emt 0:01:24]} (38... Rbc8 39. Bxc7 (39. Bxc8 Rxc8 40. Be5+ Kg8 $14) 39... Rxc7) 39. Rb1 {[%emt 0:01:35]} (39. Bxb8 Rxb8 40. Rb1 Kg7 $18) (39. Bxc8 Rxc8 40. Be5+ Kg8 $11) 39... Ba4 {[%emt 0:01:02]} 40. Bxb8 {[%emt 0:00:31]} (40. Bxc8 Rxc8 41. a6 Ra8 $11) 40... Rxb8 {[%emt 0:00:10] [#]} 41. Bd1 $1 {[%emt 0:00:08] Weighted Error Value: White=0.17 (very precise) /Black=0.30.  Loses game:     	---       	Black=1      Mistake:       	White=3     	Black=3      Inaccurate:     	White=1     	Black=1      OK:         	White=9     	Black=14     Best:        	White=1     	Black=1      Strong:       	White=3     	---        Brilliant:      	White=1     	---} 1-0

[Event "Baku Open 2024"]
[Site "Baku"]
[Date "2024.06.29"]
[Round "1.9"]
[White "Davidov, Samir"]
[Black "Asadli, Vugar"]
[Result "1/2-1/2"]
[ECO "E71"]
[WhiteElo "2244"]
[BlackElo "2560"]
[Annotator "TA"]
[PlyCount "73"]
[EventDate "2024.06.29"]
[EventType "swiss"]
[EventCountry "AZE"]
[SourceTitle "playchess.com"]
[Source "ChessBase"]
[SourceQuality "1"]
[TimeControl "5400+30"]

{[%evp 11,73,28,39,34,40,31,42,44,53,33,85,53,49,62,78,86,100,51,75,79,81,77,95,90,84,22,104,81,89,111,109,75,72,79,102,75,78,68,75,41,41,54,54,50,50,48,48,25,28,29,50,37,26,0,0,0,0,2,12,12,62,57,69,68]} 1. d4 {[%emt 0:00:05]} Nf6 {[%emt 0:00:08]} 2. c4 {[%emt 0:00:21]} g6 {[%emt 0:00:09]} 3. Nc3 {[%emt 0:00:20]} Bg7 {[%emt 0:00:06]} 4. e4 {[%emt 0:00:29]} d6 {[%emt 0:02:53]} 5. h3 {[%emt 0:00:52]} O-O {[%emt 0:00:24]} 6. Be3 {[%emt 0:00:08]} Na6 {[%emt 0:00:43]} 7. g4 {[%emt 0:01:16]} e5 {[%emt 0:00:14]} 8. d5 {[%emt 0:00:06]} Nc5 {[%emt 0:00:16]} 9. f3 {[%emt 0:00:36]} a5 {[%emt 0:01:30]} 10. Qd2 {[%emt 0:01:19]} a4 {[%emt 0:02:20]} (10... c6 $1 $14) 11. Nge2 {[%emt 0:01:29]} c6 {[%emt 0:05:21]} 12. Ng3 {[%emt 0:02:09]} cxd5 {[%emt 0:07:21]} 13. cxd5 {[%emt 0:01:13]} h5 {[%emt 0:01:01]} 14. Bg5 {[%emt 0:04:04]} ({Better is} 14. Nb5 $16) 14... h4 {[%emt 0:07:07]} 15. Nge2 {[%emt 0:01:26][%cal Bg3e2,Be2c1,Bc1d3][%mdl 32]} (15. Bxh4 Nfxe4 16. Bxd8 Nxd2 $11) 15... Bd7 {[%emt 0:07:13] [#] Dodges Nb5} 16. Nc1 $1 {[%emt 0:06:01][%cal Oc1d3]} Rc8 {[%emt 0:08:36]} 17. Nd3 {[%emt 0:06:55]} a3 {[%emt 0:02:21]} 18. Rc1 {[%emt 0:10:04]} ({White should play} 18. Rb1 $16) 18... Qa5 {[%emt 0:06:20]} (18... axb2 $11 {keeps the balance.} 19. Qxb2 Qa5) 19. b3 $16 {[%emt 0:01:30]} b5 {[%emt 0:07:46] [#]} 20. Nxc5 $1 {[%emt 0:07:07]} (20. Bxh4 Nxd5 (20... b4 21. Nd1 $11) 21. exd5 e4 22. Nxc5 (22. Nxe4 $2 Nxd3+ 23. Ke2 Nxc1+ $19) 22... e3 23. Qxe3 Rxc5 $17) 20... Rxc5 {[%emt 0:00:06]} 21. Nd1 {[%emt 0:00:28]} Qxd2+ {[%emt 0:05:42]} 22. Bxd2 {[%emt 0:13:35]} Nh7 {[%emt 0:02:05]} 23. Rxc5 {[%emt 0:00:17]} dxc5 {[%emt 0:00:06]} 24. Be3 {[%emt 0:00:34]} Rc8 {[%emt 0:04:17]} 25. Rh2 {[%emt 0:05:25]} Bf8 {[%emt 0:00:11]} 26. Rc2 {[%emt 0:01:13]} f6 {[%emt 0:04:12]} 27. Kf2 {[%emt 0:22:48]} Ng5 {[%emt 0:04:48][%cal Oc5c4]} 28. Kg2 {[%emt 0:00:05]} Nf7 {[%emt 0:01:51]} 29. Bf2 {[%emt 0:01:24]} c4 {[%emt 0:06:06]} 30. bxc4 {[%emt 0:00:47][%cal Oc4c5]} (30. Bxh4 $2 cxb3 31. Rxc8 Bxc8 $19) 30... b4 $1 {[%emt 0:00:03]} 31. Rc1 {[%emt 0:00:09][%cal Oc4c5] Black must now prevent c5!} Ba4 $1 {[%emt 0:00:46]} 32. Be2 {[%emt 0:01:51]} b3 {[%emt 0:02:26]} 33. axb3 {[%emt 0:00:45]} Bxb3 {[%emt 0:00:03]} 34. c5 {[%emt 0:01:40]} ({But not} 34. Bxh4 g5 35. Bf2 Bb4 $17) 34... Bxc5 {[%emt 0:05:17]} 35. Bxc5 {[%emt 0:00:06]} (35. Rxc5 $2 {too greedy.} Rxc5 36. Bxc5 a2 $19) 35... a2 {[%emt 0:00:28] [#]} (35... Bxd1 $1 $11 36. Bxd1 a2) 36. Nc3 $1 $14 {[%emt 0:00:07] Threatens to win with Bb4.} a1=Q {[%emt 0:00:19]} 37. Rxa1 {[%emt 0:10:16] Weighted Error Value: White=0.12 (very precise) /Black=0.13 (very precise) .  Mistake:       	White=2     	Black=3      Inaccurate:     	White=3     	---        OK:         	White=11    	Black=11     Best:        	White=1     	Black=2      Strong:       	White=3     	Black=2} 1/2-1/2

[Event "Baku Open 2024"]
[Site "Baku"]
[Date "2024.06.29"]
[Round "1.10"]
[White "Iskandarov, Misratdin"]
[Black "Orujov, Farid"]
[Result "1-0"]
[ECO "C47"]
[WhiteElo "2524"]
[BlackElo "2243"]
[Annotator "TA"]
[PlyCount "35"]
[EventDate "2024.06.29"]
[EventType "swiss"]
[EventCountry "AZE"]
[SourceTitle "playchess.com"]
[Source "ChessBase"]
[SourceQuality "1"]
[TimeControl "5400+30"]

{[%evp 16,35,0,0,0,0,0,-32,-36,-30,-25,-30,-14,-29,-18,-14,0,0,0,-475,352,348]} 1. e4 {[%emt 0:00:03]} e5 {[%emt 0:00:05]} 2. Nc3 {[%emt 0:00:52]} Nf6 {[%emt 0:00:18]} 3. g3 {[%emt 0:00:11]} d5 {[%emt 0:01:27]} 4. exd5 {[%emt 0:00:19]} Nxd5 {[%emt 0:00:06]} 5. Bg2 {[%emt 0:00:06]} Nxc3 {[%emt 0:00:08]} 6. bxc3 {[%emt 0:00:08]} Nc6 {[%emt 0:00:26]} 7. Nf3 {[%emt 0:00:46]} Bc5 {[%emt 0:01:15]} 8. O-O {[%emt 0:00:32]} O-O {[%emt 0:00:32]} 9. d3 {[%emt 0:00:58]} Bg4 {[%emt 0:01:38]} 10. Qe1 {[%emt 0:03:38]} f6 {[%emt 0:15:01]} 11. h3 {[%emt 0:06:44]} Be6 {[%emt 0:05:48] Black is slightly better.} 12. Be3 {[%emt 0:11:40]} Bb6 {[%emt 0:09:15]} 13. Kh2 {[%emt 0:00:26]} Re8 {[%emt 0:04:14]} 14. a4 {[%emt 0:07:18]} Qd7 {[%emt 0:09:29]} 15. Nd2 {[%emt 0:05:47]} f5 {[%emt 0:06:36]} 16. a5 {[%emt 0:16:40]} Nxa5 {[%emt 0:05:39]} 17. Bd4 $2 {[%emt 0:42:52][%mdl 8192] [#]} Bc5 $4 {[%mdl 8192]} 18. Bxc5 {[%emt 0:00:00] Weighted Error Value: White=0.57/Black=0.55.  Loses game:     	White=1     	---        Missed win:     	---       	Black=1      Inaccurate:     	White=1     	---        OK:         	White=4     	Black=3} 1-0